[Event "Early-Titled-Tuesday-Blitz-October-24-2023"]
[Site "Chess.com"]
[Date "2023.10.24"]
[Round "6"]
[White "Nyzhnyk_Illia"]
[Black "vugarrasulov"]
[Result "0-1"]
[WhiteElo "2871"]
[BlackElo "3014"]
[TimeControl "180+1"]
[EndTime "9:04:34 PDT"]
[Termination "vugarrasulov won by resignation"]

1. d4 {[%clk 0:02:56.1]} 1... Nf6 {[%clk 0:02:58.9]} 2. Nf3 {[%clk 0:02:55]}
2... e6 {[%clk 0:02:58.4]} 3. c4 {[%clk 0:02:55.2]} 3... c5 {[%clk 0:02:58.9]}
4. Nc3 {[%clk 0:02:54.4]} 4... cxd4 {[%clk 0:02:57.3]} 5. Nxd4 {[%clk
0:02:55.3]} 5... d5 {[%clk 0:02:57.7]} 6. g3 {[%clk 0:02:51.3]} 6... e5 {[%clk
0:02:54.5]} 7. Nf3 {[%clk 0:02:51.1]} 7... d4 {[%clk 0:02:54.4]} 8. Nb1 {[%clk
0:02:48.4]} 8... Nc6 {[%clk 0:02:54.3]} 9. Bg2 {[%clk 0:02:48.5]} 9... e4 {[%clk
0:02:53.9]} 10. Ng5 {[%clk 0:02:46.7]} 10... Bf5 {[%clk 0:02:53]} 11. Nd2 {[%clk
0:02:46.2]} 11... Bb4 {[%clk 0:02:48.3]} 12. O-O {[%clk 0:02:45.1]} 12... Bxd2
{[%clk 0:02:45.6]} 13. Qxd2 {[%clk 0:02:34.7]} 13... h6 {[%clk 0:02:44]} 14. Qf4
{[%clk 0:02:33.8]} 14... hxg5 {[%clk 0:02:12.8]} 15. Qxf5 {[%clk 0:02:34]} 15...
Qd7 {[%clk 0:01:54.2]} 16. Bxe4 {[%clk 0:02:26.6]} 16... Nxe4 {[%clk 0:01:45.7]}
17. Qxe4+ {[%clk 0:02:27.5]} 17... Kf8 {[%clk 0:01:45.4]} 18. Qd5 {[%clk
0:02:16.4]} 18... Qh3 {[%clk 0:01:39.4]} 19. Qg2 {[%clk 0:02:16.9]} 19... Qh5
{[%clk 0:01:38.9]} 20. g4 {[%clk 0:02:06.1]} 20... Qh4 {[%clk 0:01:34.3]} 21.
Qg3 {[%clk 0:02:00.4]} 21... Re8 {[%clk 0:01:28.8]} 22. Re1 {[%clk 0:01:59.7]}
22... Qxg3+ {[%clk 0:01:14.7]} 23. hxg3 {[%clk 0:02:00.6]} 23... f6 {[%clk
0:01:14.7]} 24. b3 {[%clk 0:01:50.7]} 24... Ne5 {[%clk 0:01:09]} 25. Ba3+ {[%clk
0:01:51]} 25... Kf7 {[%clk 0:01:08.9]} 26. f3 {[%clk 0:01:51.7]} 26... Rh3
{[%clk 0:01:02.6]} 27. Kg2 {[%clk 0:01:49]} 27... Reh8 {[%clk 0:01:03]} 28. Rh1
{[%clk 0:01:49.7]} 28... Rxh1 {[%clk 0:01:03.5]} 29. Rxh1 {[%clk 0:01:50.4]}
29... Rxh1 {[%clk 0:01:03.9]} 30. Kxh1 {[%clk 0:01:51.3]} 30... d3 {[%clk
0:01:04.4]} 31. exd3 {[%clk 0:01:51.5]} 31... Nxf3 {[%clk 0:01:04.8]} 32. Bd6
{[%clk 0:01:42.7]} 32... Ke6 {[%clk 0:01:01.5]} 33. Bb8 {[%clk 0:01:42.8]} 33...
a6 {[%clk 0:01:01.7]} 34. Kg2 {[%clk 0:01:43.2]} 34... Ne1+ {[%clk 0:01:01.7]}
35. Kf2 {[%clk 0:01:20.8]} 35... Nxd3+ {[%clk 0:01:02.6]} 36. Ke3 {[%clk
0:01:21.4]} 36... Nc1 {[%clk 0:00:58.2]} 37. Kd4 {[%clk 0:01:18.2]} 37... Nxa2
{[%clk 0:00:56.3]} 38. Kc5 {[%clk 0:01:18.4]} 38... Nc1 {[%clk 0:00:56.1]} 39.
Kb4 {[%clk 0:00:52.5]} 39... Nd3+ {[%clk 0:00:49.6]} 40. Ka5 {[%clk 0:00:52.6]}
40... Kd7 {[%clk 0:00:47.8]} 41. Kb6 {[%clk 0:00:52.3]} 41... Kc8 {[%clk
0:00:48.1]} 42. Bd6 {[%clk 0:00:52.5]} 42... Nf2 {[%clk 0:00:47.6]} 43. Bf8
{[%clk 0:00:51.1]} 43... g6 {[%clk 0:00:47]} 44. Be7 {[%clk 0:00:47.5]} 44...
Nxg4 {[%clk 0:00:47]} 45. c5 {[%clk 0:00:39.4]} 45... Ne3 {[%clk 0:00:45.4]} 46.
Ka7 {[%clk 0:00:29.2]} 46... Nd5 {[%clk 0:00:42.8]} 47. Bd6 {[%clk 0:00:29.6]}
47... g4 {[%clk 0:00:37]} 0-1

[Event "Early-Titled-Tuesday-Blitz-October-24-2023"]
[Site "Chess.com"]
[Date "2023.10.24"]
[Round "6"]
[White "Marcin"]
[Black "Fraler15"]
[Result "1-0"]
[WhiteElo "2426"]
[BlackElo "2249"]
[TimeControl "180+1"]
[EndTime "9:04:34 PDT"]
[Termination "Marcin won by resignation"]

1. d4 {[%clk 0:02:58.5]} 1... d5 {[%clk 0:02:58.1]} 2. c4 {[%clk 0:02:58.8]}
2... e6 {[%clk 0:02:58.5]} 3. Nf3 {[%clk 0:02:58.9]} 3... Nf6 {[%clk 0:02:58.2]}
4. Nc3 {[%clk 0:02:59.4]} 4... a6 {[%clk 0:02:58.3]} 5. cxd5 {[%clk 0:02:57.8]}
5... exd5 {[%clk 0:02:59.2]} 6. Bf4 {[%clk 0:02:58.1]} 6... c5 {[%clk
0:02:58.8]} 7. e3 {[%clk 0:02:56.9]} 7... Nc6 {[%clk 0:02:57.2]} 8. Bd3 {[%clk
0:02:53.8]} 8... c4 {[%clk 0:02:56.6]} 9. Bb1 {[%clk 0:02:53.6]} 9... b5 {[%clk
0:02:56.8]} 10. h3 {[%clk 0:02:52.8]} 10... Bb7 {[%clk 0:02:56.5]} 11. O-O
{[%clk 0:02:51.4]} 11... Bd6 {[%clk 0:02:56.1]} 12. Bg5 {[%clk 0:02:47]} 12...
Be7 {[%clk 0:02:53.2]} 13. Ne5 {[%clk 0:02:36]} 13... O-O {[%clk 0:02:44.7]} 14.
f4 {[%clk 0:02:36.2]} 14... b4 {[%clk 0:02:41.3]} 15. Ne2 {[%clk 0:02:12.5]}
15... Ne4 {[%clk 0:02:40]} 16. Bxe7 {[%clk 0:02:09.2]} 16... Qxe7 {[%clk
0:02:40.9]} 17. Bxe4 {[%clk 0:02:09]} 17... dxe4 {[%clk 0:02:23]} 18. Nxc4
{[%clk 0:02:05.3]} 18... Qe6 {[%clk 0:02:10.3]} 19. Ne5 {[%clk 0:02:04.1]} 19...
Ne7 {[%clk 0:02:07.8]} 20. Ng3 {[%clk 0:01:48.1]} 20... Nd5 {[%clk 0:01:49.8]}
21. Qd2 {[%clk 0:01:45.6]} 21... f6 {[%clk 0:01:46]} 22. f5 {[%clk 0:01:37.8]}
22... Qe7 {[%clk 0:01:37.1]} 23. Ng4 {[%clk 0:01:34.6]} 23... Rac8 {[%clk
0:01:33.9]} 24. Rac1 {[%clk 0:01:34.1]} 24... a5 {[%clk 0:01:31.6]} 25. Nf2
{[%clk 0:01:27.8]} 25... Nb6 {[%clk 0:01:27.4]} 26. Rxc8 {[%clk 0:01:24.4]}
26... Rxc8 {[%clk 0:01:27]} 27. Rc1 {[%clk 0:01:25.1]} 27... Nc4 {[%clk
0:01:01.5]} 28. Qe2 {[%clk 0:01:19]} 28... a4 {[%clk 0:00:48.8]} 29. b3 {[%clk
0:01:15.8]} 29... axb3 {[%clk 0:00:46.1]} 30. axb3 {[%clk 0:01:16.7]} 30... Na3
{[%clk 0:00:45.4]} 31. Rxc8+ {[%clk 0:01:15.9]} 31... Bxc8 {[%clk 0:00:46.3]}
32. Nfxe4 {[%clk 0:01:15.4]} 32... Bxf5 {[%clk 0:00:43.2]} 33. Nc5 {[%clk
0:01:10.2]} 33... Bg6 {[%clk 0:00:38.6]} 34. e4 {[%clk 0:01:07]} 34... Qd6
{[%clk 0:00:36.4]} 35. Qd3 {[%clk 0:01:05.4]} 35... Bf7 {[%clk 0:00:29.6]} 36.
Nf5 {[%clk 0:01:04.3]} 36... Qf4 {[%clk 0:00:28]} 37. Qa6 {[%clk 0:01:00.3]}
37... Qc1+ {[%clk 0:00:26.6]} 38. Kh2 {[%clk 0:00:59.1]} 38... Qf4+ {[%clk
0:00:26.5]} 39. Ng3 {[%clk 0:00:58.1]} 39... h5 {[%clk 0:00:23]} 40. Qc8+ {[%clk
0:00:55.8]} 40... Kh7 {[%clk 0:00:23]} 41. Qd7 {[%clk 0:00:53.4]} 41... h4
{[%clk 0:00:16]} 42. Qf5+ {[%clk 0:00:52]} 42... Qxf5 {[%clk 0:00:15.5]} 43.
Nxf5 {[%clk 0:00:46.1]} 43... g5 {[%clk 0:00:15.8]} 44. d5 {[%clk 0:00:46.2]}
44... Kg8 {[%clk 0:00:14.8]} 45. d6 {[%clk 0:00:45.2]} 45... Kf8 {[%clk
0:00:15.2]} 46. d7 {[%clk 0:00:45.7]} 1-0

[Event "Early-Titled-Tuesday-Blitz-October-24-2023"]
[Site "Chess.com"]
[Date "2023.10.24"]
[Round "6"]
[White "UK_23"]
[Black "LeoLV10"]
[Result "1-0"]
[WhiteElo "2409"]
[BlackElo "2556"]
[TimeControl "180+1"]
[EndTime "9:04:39 PDT"]
[Termination "UK_23 won by checkmate"]

1. e4 {[%clk 0:03:00.9]} 1... c5 {[%clk 0:02:59.7]} 2. c3 {[%clk 0:03:00.8]}
2... e6 {[%clk 0:02:59.2]} 3. d4 {[%clk 0:03:01.1]} 3... cxd4 {[%clk 0:02:55.6]}
4. cxd4 {[%clk 0:03:02]} 4... d5 {[%clk 0:02:56.2]} 5. e5 {[%clk 0:02:59.5]}
5... Nc6 {[%clk 0:02:56.2]} 6. Nc3 {[%clk 0:02:59.5]} 6... Qb6 {[%clk 0:02:55]}
7. Nf3 {[%clk 0:02:57.3]} 7... Bd7 {[%clk 0:02:55.1]} 8. Be2 {[%clk 0:02:54.5]}
8... Nge7 {[%clk 0:02:52.1]} 9. O-O {[%clk 0:02:51.4]} 9... Nf5 {[%clk
0:02:51.9]} 10. Na4 {[%clk 0:02:51.7]} 10... Qc7 {[%clk 0:02:45.9]} 11. a3
{[%clk 0:02:49.6]} 11... Be7 {[%clk 0:02:44]} 12. b4 {[%clk 0:02:45.4]} 12... a6
{[%clk 0:02:44]} 13. Bb2 {[%clk 0:02:44.4]} 13... O-O {[%clk 0:02:31.5]} 14. Rc1
{[%clk 0:02:44.2]} 14... Rfc8 {[%clk 0:02:30.2]} 15. g4 {[%clk 0:02:39.7]} 15...
Nh6 {[%clk 0:02:26.6]} 16. h3 {[%clk 0:02:39.2]} 16... Rab8 {[%clk 0:02:15.4]}
17. Kg2 {[%clk 0:02:38.8]} 17... Qd8 {[%clk 0:02:15.4]} 18. Kg3 {[%clk 0:02:37]}
18... f6 {[%clk 0:02:14.6]} 19. Nc5 {[%clk 0:02:14.3]} 19... fxe5 {[%clk
0:02:10.7]} 20. dxe5 {[%clk 0:02:15.2]} 20... Nf7 {[%clk 0:02:04.6]} 21. Bd3
{[%clk 0:02:06.5]} 21... h6 {[%clk 0:02:00.5]} 22. Bb1 {[%clk 0:02:04.5]} 22...
b6 {[%clk 0:01:48.7]} 23. Nxa6 {[%clk 0:01:57.6]} 23... Ra8 {[%clk 0:01:47.3]}
24. Qd3 {[%clk 0:01:54.4]} 24... Be8 {[%clk 0:01:20.8]} 25. Qh7+ {[%clk
0:01:37]} 25... Kf8 {[%clk 0:01:20.7]} 26. b5 {[%clk 0:01:31.1]} 26... Na5
{[%clk 0:01:16.7]} 27. Nd4 {[%clk 0:01:30.2]} 27... Bh4+ {[%clk 0:01:01.4]} 28.
Kg2 {[%clk 0:01:29.1]} 28... Qe7 {[%clk 0:00:41.4]} 29. f4 {[%clk 0:01:21.5]}
29... Nc4 {[%clk 0:00:38.8]} 30. Rxc4 {[%clk 0:01:12.3]} 30... Rxc4 {[%clk
0:00:32.2]} 31. f5 {[%clk 0:01:13]} 31... Rxd4 {[%clk 0:00:29.1]} 32. Bxd4
{[%clk 0:01:05.6]} 32... Qg5 {[%clk 0:00:22.3]} 33. fxe6 {[%clk 0:00:54.1]}
33... Qd2+ {[%clk 0:00:22.3]} 34. Bf2 {[%clk 0:00:47.4]} 34... Ng5 {[%clk
0:00:18.5]} 35. Qh8+ {[%clk 0:00:42.1]} 35... Ke7 {[%clk 0:00:14.5]} 36. Qxg7+
{[%clk 0:00:42.7]} 36... Bf7 {[%clk 0:00:14.9]} 37. exf7 {[%clk 0:00:37.9]}
37... Rf8 {[%clk 0:00:15.1]} 38. Qf6+ {[%clk 0:00:34.9]} 38... Kd7 {[%clk
0:00:15.4]} 39. Bf5+ {[%clk 0:00:29.9]} 39... Ne6 {[%clk 0:00:13.5]} 40. Qxe6+
{[%clk 0:00:29.9]} 40... Kd8 {[%clk 0:00:13.2]} 41. Qd6# {[%clk 0:00:28.7]} 1-0

[Event "Early-Titled-Tuesday-Blitz-October-24-2023"]
[Site "Chess.com"]
[Date "2023.10.24"]
[Round "6"]
[White "I_am_Javi"]
[Black "xxysoul6"]
[Result "1-0"]
[WhiteElo "2810"]
[BlackElo "2991"]
[TimeControl "180+1"]
[EndTime "9:04:41 PDT"]
[Termination "I_am_Javi won by resignation"]

1. e4 {[%clk 0:03:00.9]} 1... c5 {[%clk 0:02:58.6]} 2. Nf3 {[%clk 0:03:01]} 2...
d6 {[%clk 0:02:59.2]} 3. d4 {[%clk 0:03:01.5]} 3... cxd4 {[%clk 0:03:00.1]} 4.
Nxd4 {[%clk 0:03:02.4]} 4... Nf6 {[%clk 0:03:00.3]} 5. Nc3 {[%clk 0:03:03.2]}
5... a6 {[%clk 0:03:00.9]} 6. Bc4 {[%clk 0:03:03.9]} 6... e6 {[%clk 0:02:58.6]}
7. Bb3 {[%clk 0:03:04.2]} 7... Nbd7 {[%clk 0:02:58]} 8. Bg5 {[%clk 0:03:04.8]}
8... Nc5 {[%clk 0:02:58]} 9. f4 {[%clk 0:03:05.5]} 9... Qc7 {[%clk 0:02:51.2]}
10. Qe2 {[%clk 0:03:04.9]} 10... Be7 {[%clk 0:02:48.1]} 11. O-O-O {[%clk
0:03:05.3]} 11... h6 {[%clk 0:02:35.9]} 12. Bxf6 {[%clk 0:03:03.9]} 12... Bxf6
{[%clk 0:02:36.8]} 13. Rhe1 {[%clk 0:03:04.2]} 13... O-O {[%clk 0:02:35.4]} 14.
g4 {[%clk 0:03:03.1]} 14... b5 {[%clk 0:02:33.4]} 15. g5 {[%clk 0:03:03.7]}
15... hxg5 {[%clk 0:02:33.4]} 16. e5 {[%clk 0:03:04.5]} 16... dxe5 {[%clk
0:02:31.4]} 17. fxe5 {[%clk 0:03:05.4]} 17... Be7 {[%clk 0:02:31.7]} 18. h4
{[%clk 0:03:05.6]} 18... Bb7 {[%clk 0:02:29.2]} 19. Kb1 {[%clk 0:02:27.6]} 19...
b4 {[%clk 0:02:25]} 20. hxg5 {[%clk 0:02:26.8]} 20... bxc3 {[%clk 0:01:46.5]}
21. Qh5 {[%clk 0:02:24.3]} 21... g6 {[%clk 0:01:41.4]} 22. Qh2 {[%clk
0:01:01.1]} 22... Nxb3 {[%clk 0:00:55.2]} 23. axb3 {[%clk 0:00:58.8]} 23... f5
{[%clk 0:00:45.4]} 24. Nxe6 {[%clk 0:00:27.6]} 24... Qb6 {[%clk 0:00:45.5]} 25.
Nxf8 {[%clk 0:00:15.9]} 25... Rxf8 {[%clk 0:00:45.2]} 26. e6 {[%clk 0:00:15.2]}
26... Be4 {[%clk 0:00:41.6]} 27. Rh1 {[%clk 0:00:08.4]} 1-0

[Event "Early-Titled-Tuesday-Blitz-October-24-2023"]
[Site "Chess.com"]
[Date "2023.10.24"]
[Round "6"]
[White "OparinGrigoriy"]
[Black "MagnusCarlsen"]
[Result "0-1"]
[WhiteElo "2987"]
[BlackElo "3273"]
[TimeControl "180+1"]
[EndTime "9:04:42 PDT"]
[Termination "MagnusCarlsen won by resignation"]

1. c4 {[%clk 0:03:00.9]} 1... e5 {[%clk 0:02:58.6]} 2. Nc3 {[%clk 0:03:01.2]}
2... Bb4 {[%clk 0:02:58.6]} 3. Qc2 {[%clk 0:02:59.4]} 3... a5 {[%clk 0:02:56.7]}
4. g3 {[%clk 0:02:58.1]} 4... Nf6 {[%clk 0:02:44.8]} 5. Bg2 {[%clk 0:02:58.3]}
5... O-O {[%clk 0:02:45.5]} 6. a3 {[%clk 0:02:53.9]} 6... Bxc3 {[%clk 0:02:45]}
7. Qxc3 {[%clk 0:02:54.1]} 7... Re8 {[%clk 0:02:45.6]} 8. Nf3 {[%clk 0:02:49.5]}
8... Nc6 {[%clk 0:02:44.3]} 9. d3 {[%clk 0:02:48]} 9... a4 {[%clk 0:02:43.3]}
10. O-O {[%clk 0:02:47.5]} 10... h6 {[%clk 0:02:41.3]} 11. b4 {[%clk 0:02:42.7]}
11... axb3 {[%clk 0:02:39.6]} 12. Qxb3 {[%clk 0:02:43.2]} 12... e4 {[%clk
0:02:38.1]} 13. dxe4 {[%clk 0:02:39.1]} 13... Nxe4 {[%clk 0:02:39]} 14. Bb2
{[%clk 0:02:39]} 14... d6 {[%clk 0:02:38.5]} 15. Rfd1 {[%clk 0:02:34.9]} 15...
Qe7 {[%clk 0:02:31.5]} 16. Nd4 {[%clk 0:02:20.8]} 16... Nxd4 {[%clk 0:02:31.1]}
17. Rxd4 {[%clk 0:02:20.6]} 17... Nc5 {[%clk 0:02:31.2]} 18. Qc2 {[%clk
0:01:49.4]} 18... Qxe2 {[%clk 0:02:30.1]} 19. Rd2 {[%clk 0:01:50.2]} 19... Qh5
{[%clk 0:02:28.6]} 20. a4 {[%clk 0:01:34.2]} 20... Bf5 {[%clk 0:02:25.4]} 21.
Qc3 {[%clk 0:01:34.5]} 21... Qg6 {[%clk 0:02:25.5]} 22. a5 {[%clk 0:01:28.1]}
22... Ne4 {[%clk 0:02:25.4]} 23. Bxe4 {[%clk 0:01:28.7]} 23... Bxe4 {[%clk
0:02:26.3]} 24. f3 {[%clk 0:01:29.4]} 24... Bc6 {[%clk 0:02:24.9]} 25. Kf2
{[%clk 0:01:29.6]} 25... Re5 {[%clk 0:02:24.2]} 26. Re2 {[%clk 0:01:22.1]} 26...
Rxe2+ {[%clk 0:02:18.5]} 27. Kxe2 {[%clk 0:01:23]} 27... f6 {[%clk 0:02:17.7]}
28. Kf2 {[%clk 0:01:22.9]} 28... Qf5 {[%clk 0:02:17.3]} 29. Ra3 {[%clk
0:01:11.8]} 29... Re8 {[%clk 0:02:04]} 30. Qd2 {[%clk 0:01:12.1]} 30... Qh3
{[%clk 0:02:02.6]} 31. Kg1 {[%clk 0:01:11.1]} 31... Qe6 {[%clk 0:02:02.1]} 32.
c5 {[%clk 0:01:00.7]} 32... dxc5 {[%clk 0:01:51]} 33. a6 {[%clk 0:01:01.3]}
33... b5 {[%clk 0:01:20.2]} 34. a7 {[%clk 0:01:01.6]} 34... Ba8 {[%clk
0:01:17.1]} 35. Kf2 {[%clk 0:00:56.3]} 35... b4 {[%clk 0:01:16.2]} 36. Re3
{[%clk 0:00:55.3]} 36... Qxe3+ {[%clk 0:01:11.4]} 37. Qxe3 {[%clk 0:00:56.2]}
37... Rxe3 {[%clk 0:01:11.7]} 38. Kxe3 {[%clk 0:00:57.1]} 38... Kf7 {[%clk
0:01:12.3]} 39. Kd3 {[%clk 0:00:52.5]} 39... Bd5 {[%clk 0:01:11.2]} 40. Bc1
{[%clk 0:00:37.9]} 40... Ke6 {[%clk 0:01:10.6]} 41. Bf4 {[%clk 0:00:36.6]} 41...
c4+ {[%clk 0:00:36.1]} 42. Kd4 {[%clk 0:00:36.5]} 42... c5+ {[%clk 0:00:33.2]}
43. Kxc5 {[%clk 0:00:36.5]} 43... b3 {[%clk 0:00:33.9]} 44. Bc1 {[%clk
0:00:20.7]} 44... c3 {[%clk 0:00:32.6]} 45. f4 {[%clk 0:00:21.6]} 45... f5
{[%clk 0:00:29.7]} 46. g4 {[%clk 0:00:21.6]} 46... g6 {[%clk 0:00:30.4]} 0-1

[Event "Early-Titled-Tuesday-Blitz-October-24-2023"]
[Site "Chess.com"]
[Date "2023.10.24"]
[Round "6"]
[White "GroovyKettle"]
[Black "FairChess_on_YouTube"]
[Result "1-0"]
[WhiteElo "2991"]
[BlackElo "3090"]
[TimeControl "180+1"]
[EndTime "9:04:42 PDT"]
[Termination "GroovyKettle won on time"]

1. e4 {[%clk 0:03:00.9]} 1... c5 {[%clk 0:02:57.5]} 2. Nf3 {[%clk 0:03:01]} 2...
g6 {[%clk 0:02:55.7]} 3. c3 {[%clk 0:02:58.6]} 3... d5 {[%clk 0:02:54.7]} 4.
exd5 {[%clk 0:02:57.1]} 4... Qxd5 {[%clk 0:02:55.6]} 5. d4 {[%clk 0:02:57.5]}
5... Nf6 {[%clk 0:02:55.5]} 6. Nbd2 {[%clk 0:02:54.3]} 6... Bg7 {[%clk
0:02:41.5]} 7. Bc4 {[%clk 0:02:54.4]} 7... Qd8 {[%clk 0:02:36]} 8. dxc5 {[%clk
0:02:53.9]} 8... O-O {[%clk 0:02:35.8]} 9. O-O {[%clk 0:02:53.9]} 9... Qc7
{[%clk 0:02:31.8]} 10. b4 {[%clk 0:02:42.7]} 10... b6 {[%clk 0:02:24.8]} 11.
cxb6 {[%clk 0:02:40.8]} 11... axb6 {[%clk 0:02:25.7]} 12. Bb2 {[%clk 0:02:40.9]}
12... Bb7 {[%clk 0:02:25.5]} 13. Qb3 {[%clk 0:02:31]} 13... Nc6 {[%clk
0:02:09.8]} 14. Rfe1 {[%clk 0:02:31]} 14... e6 {[%clk 0:02:09.9]} 15. a3 {[%clk
0:02:31]} 15... Rad8 {[%clk 0:02:06.5]} 16. Bf1 {[%clk 0:02:29.7]} 16... Ng4
{[%clk 0:02:02.2]} 17. h3 {[%clk 0:02:16.1]} 17... Nge5 {[%clk 0:01:30.4]} 18.
c4 {[%clk 0:02:13.5]} 18... Nxf3+ {[%clk 0:01:26.7]} 19. Nxf3 {[%clk 0:02:14.4]}
19... e5 {[%clk 0:01:27.1]} 20. Rac1 {[%clk 0:02:09.4]} 20... Rfe8 {[%clk
0:01:13]} 21. c5 {[%clk 0:02:07.9]} 21... e4 {[%clk 0:01:12.8]} 22. Bxg7 {[%clk
0:01:56.9]} 22... Kxg7 {[%clk 0:01:05.9]} 23. Qc3+ {[%clk 0:01:51]} 23... f6
{[%clk 0:01:04.5]} 24. Nd2 {[%clk 0:01:44.5]} 24... Qf4 {[%clk 0:00:57.6]} 25.
Nb3 {[%clk 0:01:30]} 25... Ne5 {[%clk 0:00:49.7]} 26. cxb6 {[%clk 0:01:27.8]}
26... Nf3+ {[%clk 0:00:41.1]} 27. gxf3 {[%clk 0:01:19.6]} 27... Qg5+ {[%clk
0:00:41.7]} 28. Kh1 {[%clk 0:01:12.2]} 28... e3 {[%clk 0:00:41.4]} 29. Qc7+
{[%clk 0:01:05.5]} 29... Kh6 {[%clk 0:00:23.5]} 30. Qg3 {[%clk 0:00:58.1]} 30...
exf2 {[%clk 0:00:16.9]} 31. Qxg5+ {[%clk 0:00:57.8]} 31... Kxg5 {[%clk
0:00:16.1]} 32. Rxe8 {[%clk 0:00:58]} 32... Bxf3+ {[%clk 0:00:14.6]} 33. Kh2
{[%clk 0:00:56]} 33... Rxe8 {[%clk 0:00:14.1]} 34. Kg3 {[%clk 0:00:56.3]} 34...
Re3 {[%clk 0:00:14.3]} 35. Nd2 {[%clk 0:00:43.5]} 35... Ba8+ {[%clk 0:00:07.9]}
36. Kxf2 {[%clk 0:00:43.7]} 36... Rxa3 {[%clk 0:00:08.7]} 37. Bg2 {[%clk
0:00:42]} 37... Bxg2 {[%clk 0:00:04.1]} 38. Kxg2 {[%clk 0:00:42.3]} 38... Ra2
{[%clk 0:00:03.6]} 39. b7 {[%clk 0:00:42.5]} 39... Rxd2+ {[%clk 0:00:03.5]} 40.
Kf3 {[%clk 0:00:42.7]} 40... Rd3+ {[%clk 0:00:03.4]} 41. Ke2 {[%clk 0:00:42.8]}
41... Rd8 {[%clk 0:00:03.2]} 42. Rc8 {[%clk 0:00:42.8]} 1-0

[Event "Early-Titled-Tuesday-Blitz-October-24-2023"]
[Site "Chess.com"]
[Date "2023.10.24"]
[Round "6"]
[White "Witik"]
[Black "Zhbugnoimt"]
[Result "1-0"]
[WhiteElo "2795"]
[BlackElo "2568"]
[TimeControl "180+1"]
[EndTime "9:04:49 PDT"]
[Termination "Witik won by resignation"]

1. e4 {[%clk 0:02:59.5]} 1... c5 {[%clk 0:02:58.1]} 2. d4 {[%clk 0:02:59.5]}
2... cxd4 {[%clk 0:02:57.6]} 3. c3 {[%clk 0:03:00]} 3... dxc3 {[%clk 0:02:57.4]}
4. Nxc3 {[%clk 0:03:00.9]} 4... Nc6 {[%clk 0:02:57.9]} 5. Nf3 {[%clk 0:03:01.3]}
5... e6 {[%clk 0:02:58.3]} 6. Bc4 {[%clk 0:03:01.8]} 6... a6 {[%clk 0:02:58.8]}
7. O-O {[%clk 0:03:01.4]} 7... Nge7 {[%clk 0:02:59.4]} 8. Be3 {[%clk 0:03:01.4]}
8... Ng6 {[%clk 0:02:59.8]} 9. Nd4 {[%clk 0:03:01.7]} 9... Be7 {[%clk
0:02:45.8]} 10. Nf5 {[%clk 0:03:01.7]} 10... exf5 {[%clk 0:02:44.4]} 11. Nd5
{[%clk 0:03:00.8]} 11... Bd6 {[%clk 0:01:15.4]} 12. exf5 {[%clk 0:03:00.9]}
12... Nge5 {[%clk 0:00:49.1]} 13. Bb3 {[%clk 0:02:58.1]} 13... Qh4 {[%clk
0:00:20]} 14. h3 {[%clk 0:02:58.1]} 14... Rb8 {[%clk 0:00:15.2]} 15. f4 {[%clk
0:02:52.7]} 15... O-O {[%clk 0:00:15.5]} 16. fxe5 {[%clk 0:02:46.4]} 16... Bxe5
{[%clk 0:00:16.4]} 17. f6 {[%clk 0:02:38.5]} 17... d6 {[%clk 0:00:16.8]} 18. Bf4
{[%clk 0:02:08.5]} 18... Be6 {[%clk 0:00:16.3]} 19. Bxe5 {[%clk 0:02:03.8]}
19... dxe5 {[%clk 0:00:16.7]} 20. fxg7 {[%clk 0:01:55.3]} 20... Kxg7 {[%clk
0:00:17.6]} 21. Nf6 {[%clk 0:01:55.8]} 21... Rbd8 {[%clk 0:00:14.8]} 22. Qe2
{[%clk 0:01:44.4]} 22... Kh8 {[%clk 0:00:11.1]} 23. Rac1 {[%clk 0:01:36.3]}
23... Bxb3 {[%clk 0:00:06]} 24. axb3 {[%clk 0:01:36.7]} 24... Qd4+ {[%clk
0:00:06.6]} 25. Kh1 {[%clk 0:01:36.8]} 25... Rd6 {[%clk 0:00:07.1]} 26. Qh5
{[%clk 0:01:36.5]} 26... Qd3 {[%clk 0:00:06.6]} 27. Rcd1 {[%clk 0:01:32.1]}
27... Rxf6 {[%clk 0:00:06.6]} 28. Rxf6 {[%clk 0:01:13.2]} 28... Qc2 {[%clk
0:00:06.7]} 29. Rd7 {[%clk 0:01:09.7]} 29... Rg8 {[%clk 0:00:07.1]} 30. Qf3
{[%clk 0:00:55.6]} 30... Nd4 {[%clk 0:00:07.5]} 31. Rxd4 {[%clk 0:00:52.5]}
31... exd4 {[%clk 0:00:06.8]} 32. Rxf7 {[%clk 0:00:53]} 32... Qc1+ {[%clk
0:00:06.1]} 33. Kh2 {[%clk 0:00:53.2]} 33... Qg5 {[%clk 0:00:07]} 34. Qe4 {[%clk
0:00:46.4]} 34... Rg7 {[%clk 0:00:03.8]} 35. Rf8+ {[%clk 0:00:45]} 35... Rg8
{[%clk 0:00:04.3]} 36. Qxd4+ {[%clk 0:00:45.5]} 36... Qg7 {[%clk 0:00:04.9]} 37.
Rxg8+ {[%clk 0:00:36.6]} 37... Kxg8 {[%clk 0:00:05.1]} 38. Qxg7+ {[%clk
0:00:37]} 38... Kxg7 {[%clk 0:00:06]} 39. Kg3 {[%clk 0:00:37.5]} 39... Kf6
{[%clk 0:00:06.7]} 40. Kf4 {[%clk 0:00:38]} 40... Ke6 {[%clk 0:00:07.2]} 41. g4
{[%clk 0:00:37.3]} 41... Kd6 {[%clk 0:00:07.6]} 42. Kg5 {[%clk 0:00:36.1]} 42...
Kc5 {[%clk 0:00:07.2]} 43. Kh6 {[%clk 0:00:36.7]} 43... Kb4 {[%clk 0:00:08.1]}
44. Kxh7 {[%clk 0:00:37.2]} 44... Kxb3 {[%clk 0:00:09]} 45. g5 {[%clk
0:00:37.9]} 45... Kxb2 {[%clk 0:00:09.9]} 46. g6 {[%clk 0:00:38.6]} 46... a5
{[%clk 0:00:10.8]} 47. g7 {[%clk 0:00:39.3]} 47... a4 {[%clk 0:00:11.7]} 48.
g8=Q {[%clk 0:00:40]} 48... a3 {[%clk 0:00:12.6]} 49. Qg7+ {[%clk 0:00:39.2]}
49... Kb1 {[%clk 0:00:12.6]} 50. Qxb7+ {[%clk 0:00:39.6]} 1-0